bitfinex/quotes_BTCUSD_20241130
["timestamp","ask_amount","ask_price","bid_price","bid_amount"]
[1732987136042,0.00361363,96908.0,96907.0,0.39378405]
[1732987136469,0.00261363,96908.0,96907.0,0.39178405]
[1732987136879,0.00361363,96908.0,96907.0,0.39378405]
[1732987137340,0.00261363,96908.0,96907.0,0.39178405]
[1732987137563,0.00261363,96908.0,96907.0,0.39378405]
[1732987137778,0.00461363,96908.0,96907.0,0.39478405]
[1732987138210,0.00261363,96908.0,96907.0,0.39278405]
[1732987138707,0.00361363,96908.0,96907.0,0.39378405]
[1732987138951,0.00261363,96908.0,96907.0,0.39178405]
[1732987139172,0.00361363,96908.0,96907.0,0.39378405]
[1732987139390,0.00261363,96908.0,96907.0,0.39278405]
[1732987139608,0.00161363,96908.0,96907.0,0.39078405]
[1732987139840,0.00261363,96908.0,96907.0,0.39378405]
[1732987141184,0.00161363,96908.0,96907.0,0.39278405]
[1732987141429,0.00261363,96908.0,96907.0,0.39378405]
[1732987141862,0.00261363,96908.0,96907.0,0.47088405]
[1732987142541,0.00261363,96908.0,96907.0,0.39178405]
[1732987142765,0.00161363,96908.0,96907.0,0.39278405]
[1732987142991,0.00261363,96908.0,96907.0,0.39378405]
[1732987143202,0.00261363,96908.0,96907.0,0.39178405]
[1732987143859,0.00261363,96908.0,96907.0,0.39378405]
[1732987144445,0.00161363,96908.0,96907.0,0.39278405]
[1732987144644,0.00261363,96908.0,96907.0,0.39378405]
[1732987145056,0.00261363,96908.0,96907.0,0.39178405]
[1732987145364,0.00261363,96908.0,96907.0,0.39378405]
[1732987147052,0.00261363,96908.0,96907.0,0.289191]
[1732987147267,0.00261363,96908.0,96907.0,0.29093884]
[1732987147715,0.00161363,96908.0,96907.0,0.28993884]
[1732987148185,0.00161363,96908.0,96907.0,0.28893884]
[1732987148394,0.00161363,96908.0,96907.0,0.28993884]
[1732987148609,0.00261363,96908.0,96907.0,0.28993884]
[1732987148850,0.00261363,96908.0,96907.0,0.28793884]
[1732987149288,0.00261363,96908.0,96907.0,0.28993884]
[1732987152148,0.00261363,96908.0,96907.0,0.288191]
[1732987152320,0.00261363,96908.0,96907.0,0.28993884]
[1732987154118,0.00261363,96908.0,96907.0,0.035]
[1732987154329,0.00261363,96908.0,96907.0,0.012]
[1732987154539,0.04981363,96908.0,96907.0,0.012]
[1732987156510,0.04981363,96908.0,96907.0,0.52308293]
[1732987157544,0.04981363,96908.0,96907.0,0.13993884]
[1732987159935,0.00261363,96908.0,96907.0,0.13993884]
[1732987160859,0.00261363,96908.0,96907.0,0.14176513]
[1732987161071,0.00261363,96908.0,96907.0,0.24461034]
[1732987161287,0.00261363,96908.0,96907.0,0.24278405]
[1732987161961,0.00261363,96908.0,96907.0,0.36938405]
[1732987162210,0.00261363,96908.0,96907.0,0.51938405]
[1732987162436,0.00261363,96908.0,96907.0,0.52938405]
[1732987163149,0.00261363,96908.0,96907.0,0.53938405]
[1732987164996,0.00261363,96908.0,96907.0,0.53738405]
[1732987165211,0.00161363,96908.0,96907.0,0.53738405]
[1732987165487,0.00361363,96908.0,96907.0,0.54238405]
[1732987165722,0.00261363,96908.0,96907.0,0.54138405]
[1732987165954,0.00161363,96908.0,96907.0,0.53738405]
[1732987166192,0.00361363,96908.0,96907.0,0.54438405]
[1732987166421,0.00361363,96908.0,96907.0,0.54338405]
[1732987166661,0.00361363,96908.0,96907.0,0.53838405]
[1732987166910,0.00161363,96908.0,96907.0,0.53738405]
[1732987168085,0.00261363,96908.0,96907.0,0.54138405]
[1732987168326,0.00361363,96908.0,96907.0,0.53838405]
[1732987168542,0.00161363,96908.0,96907.0,0.53738405]
[1732987168776,0.00261363,96908.0,96907.0,0.54138405]
[1732987168998,0.00361363,96908.0,96907.0,0.50726455]
[1732987169190,0.00361363,96908.0,96907.0,0.50326455]
[1732987169191,0.00261363,96908.0,96907.0,0.50326455]
[1732987169418,0.00361363,96908.0,96907.0,0.50726455]
[1732987170996,0.00261363,96908.0,96907.0,0.50326455]
[1732987171262,0.00161363,96908.0,96907.0,0.50226455]
[1732987171491,0.00261363,96908.0,96907.0,0.50626455]
[1732987171716,0.00261363,96908.0,96907.0,0.50326455]
[1732987172163,0.00361363,96908.0,96907.0,0.50726455]
[1732987172389,0.0072501,96942.0,96941.0,0.103155]
[1732987173762,0.0072501,96942.0,96941.0,0.10321466]
[1732987174491,0.0102501,96942.0,96941.0,0.12621466]
[1732987174735,0.0192501,96942.0,96941.0,0.12621466]
[1732987180925,0.0192501,96942.0,96941.0,0.1279625]
[1732987194844,0.0192501,96942.0,96941.0,0.0248075]
[1732987195051,0.0192501,96942.0,96941.0,0.0018075]
[1732987195260,0.0683501,96942.0,96941.0,0.0018075]
[1732987196237,0.0683501,96942.0,96941.0,0.0248075]
[1732987199816,0.0683501,96942.0,96941.0,0.0018075]
[1732987200000,0.0683501,96942.0,96941.0,0.0248075]
[1732987201996,0.0683501,96942.0,96941.0,0.1279625]
[1732987202361,0.0683501,96942.0,96941.0,0.0248075]
[1732987204724,0.0192501,96942.0,96941.0,0.1279625]
[1732987206099,0.0192501,96942.0,96941.0,0.0248075]
[1732987206545,0.0192501,96942.0,96941.0,0.53545159]
[1732987207416,0.0192501,96942.0,96941.0,0.0248075]
[1732987208025,0.0192501,96942.0,96941.0,0.1279625]
[1732987213940,0.03538651,96942.0,96941.0,0.1279625]
[1732987220273,0.03538651,96942.0,96941.0,0.0248075]
[1732987220518,0.13854051,96942.0,96941.0,0.0248075]
[1732987221227,0.03538651,96942.0,96941.0,0.0248075]
[1732987221436,0.13854051,96942.0,96941.0,0.0248075]
[1732987221865,0.03538651,96942.0,96941.0,0.0248075]
[1732987222745,0.13854051,96942.0,96941.0,0.0248075]
[1732987222961,0.03538651,96942.0,96941.0,0.0248075]
[1732987223782,0.13854051,96942.0,96941.0,0.0248075]
[1732987224203,0.03538651,96942.0,96941.0,0.0248075]
[1732987226152,0.13854051,96942.0,96941.0,0.0248075]
[1732987226368,0.03538651,96942.0,96941.0,0.0248075]
[1732987227954,0.13854051,96942.0,96941.0,0.0248075]
[1732987228400,0.03538651,96942.0,96941.0,0.0248075]
[1732987229258,0.03538651,96942.0,96941.0,0.1279625]
[1732987229672,0.03538651,96942.0,96941.0,0.0248075]
[1732987233002,0.03538651,96942.0,96941.0,0.0018075]
[1732987233421,0.03538651,96942.0,96941.0,0.0248075]
[1732987234067,0.13854051,96942.0,96941.0,0.0248075]
[1732987234316,0.37198572,96942.0,96941.0,5.966e-05]
[1732987243541,0.35584931,96942.0,96941.0,5.966e-05]
[1732987262526,0.34684931,96942.0,96941.0,5.966e-05]
[1732987262736,0.35584931,96942.0,96941.0,5.966e-05]
[1732987262948,0.35284931,96942.0,96941.0,5.966e-05]
[1732987263155,0.34984931,96942.0,96941.0,5.966e-05]
[1732987263439,0.35884931,96942.0,96941.0,5.966e-05]
[1732987263645,0.35284931,96942.0,96941.0,5.966e-05]
[1732987263865,0.27074931,96942.0,96941.0,5.966e-05]
[1732987264078,0.27774931,96942.0,96941.0,5.966e-05]
[1732987264748,0.26174931,96942.0,96941.0,5.966e-05]
[1732987264995,0.27074931,96942.0,96941.0,5.966e-05]
[1732987265440,0.26174931,96942.0,96941.0,5.966e-05]
[1732987265646,0.27074931,96942.0,96941.0,5.966e-05]
[1732987266518,0.22224931,96942.0,96941.0,5.966e-05]
[1732987266731,0.0162501,96942.0,96941.0,0.10321466]
[1732987266950,0.0162501,96942.0,96941.0,0.12621466]
[1732987267385,0.0222501,96942.0,96941.0,0.12621466]
[1732987267824,0.0222501,96942.0,96941.0,5.966e-05]
[1732987268039,0.0222501,96942.0,96941.0,0.12621466]
[1732987268511,0.0222501,96942.0,96941.0,0.1279625]
[1732987268712,0.0222501,96942.0,96941.0,0.1765625]
[1732987269828,0.0222501,96942.0,96941.0,0.2594625]
[1732987270495,0.0222501,96942.0,96941.0,0.25771466]
[1732987270730,0.0222501,96942.0,96941.0,0.2594625]
[1732987270927,0.0132501,96942.0,96941.0,0.2594625]
[1732987271174,0.0132501,96942.0,96941.0,0.66663741]
[1732987271869,0.0202501,96942.0,96941.0,0.66663741]
[1732987272086,0.0142501,96942.0,96941.0,0.2594625]
[1732987272298,0.0142501,96942.0,96941.0,0.36230771]
[1732987272547,0.0142501,96942.0,96941.0,0.51230771]
[1732987272797,0.0162501,96942.0,96941.0,0.52230771]
[1732987273029,0.0017282,96950.0,96949.0,0.27789484]
[1732987273264,0.0017282,96950.0,96949.0,0.51224005]
[1732987273775,0.0017282,96950.0,96949.0,0.52224005]
[1732987274480,0.00140813,96950.0,96949.0,0.52224005]
[1732987274972,0.00240813,96950.0,96949.0,0.52424005]
[1732987275911,0.00340813,96950.0,96949.0,0.52924005]
[1732987276382,0.00240813,96950.0,96949.0,0.52424005]
[1732987276633,0.00340813,96950.0,96949.0,0.53024005]
[1732987280725,0.00340813,96950.0,96949.0,0.53196825]
[1732987283536,0.00340813,96950.0,96949.0,0.93734721]
[1732987283757,0.00340813,96950.0,96949.0,0.53196825]
[1732987284441,0.00340813,96950.0,96949.0,0.93727225]
[1732987284674,0.00340813,96950.0,96949.0,0.53196825]
[1732987285641,0.00340813,96950.0,96949.0,0.93715092]
[1732987286123,0.00340813,96950.0,96949.0,0.53196825]
[1732987286349,0.00306809,96950.0,96949.0,0.53196825]
[1732987290330,0.00272727,96950.0,96949.0,0.53196825]
[1732987290545,0.00272727,96950.0,96949.0,0.93715092]
[1732987290989,0.00272727,96950.0,96949.0,0.53196825]
[1732987291484,0.00272727,96950.0,96949.0,0.93698269]
[1732987292377,0.00272727,96950.0,96949.0,0.53196825]
[1732987294703,2.7e-07,96950.0,96949.0,0.53196825]
[1732987295183,0.0017286,96971.0,96970.0,0.40187184]
[1732987295424,0.0017286,96971.0,96970.0,0.94921705]
[1732987297533,0.0047286,96971.0,96970.0,0.94921705]
[1732987297987,0.0017286,96971.0,96970.0,0.94921705]
[1732987298206,0.0017286,96971.0,96970.0,0.95521705]
[1732987301486,0.0017286,96971.0,96970.0,0.96634908]
[1732987302367,0.03222045,96982.0,96970.0,0.86322508]
[1732987302581,0.03222045,96982.0,96981.0,0.12785984]
[1732987302798,0.03222045,96982.0,96981.0,0.53220855]
[1732987303013,0.03222045,96982.0,96981.0,0.12785984]
[1732987303885,0.03622045,96982.0,96981.0,0.1279195]
[1732987305464,0.03722045,96982.0,96981.0,0.1279195]
[1732987307667,0.11812045,96982.0,96981.0,0.53250044]
[1732987307921,0.11812045,96982.0,96981.0,0.1279195]
[1732987309065,0.03722045,96982.0,96981.0,0.1279195]
[1732987309514,0.03722045,96982.0,96981.0,0.53268967]
[1732987309733,0.03722045,96982.0,96981.0,0.1279195]
[1732987322217,0.03722045,96982.0,96981.0,9.1279195]
[1732987325437,0.03722045,96982.0,96981.0,9.13886474]
[1732987331720,0.03722045,96982.0,96981.0,9.1371169]
[1732987331942,0.03722045,96982.0,96981.0,9.13886474]
[1732987334469,0.03722045,96982.0,96981.0,9.02305966]
[1732987334758,0.26713145,96982.0,96981.0,9.00005966]
[1732987335419,0.26613145,96982.0,96981.0,9.00005966]
[1732987336323,0.26613145,96982.0,96981.0,9.02305966]
[1732987336540,0.26913145,96982.0,96981.0,9.02305966]
[1732987337473,0.26913145,96982.0,96981.0,9.00005966]
[1732987338836,0.26513145,96982.0,96981.0,9.00005966]
[1732987339051,0.27013145,96982.0,96981.0,9.00105966]
[1732987339324,0.26513145,96982.0,96981.0,9.00005966]
[1732987339526,0.27313145,96982.0,96981.0,9.00105966]
[1732987339741,0.27013145,96982.0,96981.0,9.00105966]
[1732987339957,0.26213145,96982.0,96981.0,9.00005966]
[1732987340179,0.27313145,96982.0,96981.0,9.00105966]
[1732987340393,0.26513145,96982.0,96981.0,9.00005966]
[1732987340844,0.14633145,96982.0,96981.0,9.00105966]
[1732987341061,0.19273145,96982.0,96981.0,9.00105966]
[1732987341944,0.37427666,96982.0,96981.0,9.00105966]
[1732987342145,0.36327666,96982.0,96981.0,9.00005966]
[1732987342643,0.37427666,96982.0,96981.0,9.00105966]
[1732987342861,0.37127666,96982.0,96981.0,9.00005966]
[1732987343085,0.37927666,96982.0,96981.0,9.00105966]
[1732987343320,0.38227666,96982.0,96981.0,9.00105966]
[1732987343792,0.37927666,96982.0,96981.0,9.00105966]
[1732987344010,0.36327666,96982.0,96981.0,9.00005966]
[1732987344252,0.36627666,96982.0,96981.0,9.00005966]
[1732987345334,0.37227666,96982.0,96981.0,9.00105966]
[1732987345557,0.36327666,96982.0,96981.0,9.00005966]
[1732987345783,0.31727666,96982.0,96981.0,9.00005966]
[1732987346002,0.32627666,96982.0,96981.0,9.00105966]
[1732987352440,0.32714056,96982.0,96981.0,9.00105966]
[1732987355847,0.34327403,96982.0,96981.0,9.00105966]
[1732987360132,0.36152619,96982.0,96981.0,9.00105966]
[1732987360592,0.36152619,96982.0,96981.0,8.98492966]
[1732987361258,0.34852619,96982.0,96981.0,8.98392966]
[1732987361471,0.35352619,96982.0,96981.0,8.98492966]
[1732987361946,0.35352619,96982.0,96981.0,8.98392966]
[1732987362166,0.34852619,96982.0,96981.0,8.98392966]
[1732987362378,0.35452619,96982.0,96981.0,8.98492966]
[1732987363019,0.36352619,96982.0,96981.0,8.98492966]
[1732987363477,0.35452619,96982.0,96981.0,8.98492966]
[1732987363893,0.36352619,96982.0,96981.0,8.98492966]
[1732987364320,0.36352619,96982.0,96981.0,8.98665726]
[1732987367723,0.39567626,96982.0,96981.0,8.98665726]
[1732987372108,0.31697626,96982.0,96981.0,8.98665726]
[1732987372397,0.27057626,96982.0,96981.0,8.98665726]
[1732987390347,0.26057626,96982.0,96981.0,8.98665726]
[1732987390809,0.2523241,96982.0,96981.0,9.11765726]
[1732987391020,0.26057626,96982.0,96981.0,9.11765726]
[1732987391719,0.2523241,96982.0,96981.0,9.11765726]
[1732987392389,0.03199737,96982.0,96981.0,9.14065726]
[1732987394133,0.13510837,96982.0,96981.0,9.14065726]
[1732987395245,0.03199737,96982.0,96981.0,9.14065726]
[1732987396090,0.0158639,96982.0,96981.0,9.14065726]
[1732987397449,0.0158639,96982.0,96981.0,9.24376926]
[1732987397699,0.0158639,96982.0,96981.0,9.2455171]
[1732987398603,0.0098639,96982.0,96981.0,9.2445171]
[1732987398817,0.0098639,96982.0,96981.0,9.2455171]
[1732987399693,0.0008639,96982.0,96981.0,9.2455171]
[1732987399916,0.0028639,96982.0,96981.0,9.2455171]
[1732987400127,0.0028639,96982.0,96981.0,9.65250821]
[1732987400355,0.0028639,96982.0,96981.0,9.2455171]
[1732987402854,0.0028639,96982.0,96981.0,9.24376926]
[1732987403068,0.0028639,96982.0,96981.0,9.2455171]
[1732987408463,0.0028639,96982.0,96981.0,9.52087509]
[1732987408677,0.0028639,96982.0,96981.0,9.2455171]
[1732987409791,0.0028639,96982.0,96981.0,9.52085615]
[1732987411434,0.0028639,96982.0,96981.0,9.2455171]
[1732987413164,0.0028639,96982.0,96981.0,9.52085615]
[1732987413376,0.0028639,96982.0,96981.0,9.2455171]
[1732987413604,0.0028639,96982.0,96981.0,9.52085615]
[1732987414050,0.0028639,96982.0,96981.0,9.2455171]
[1732987423214,0.0028639,96982.0,96981.0,9.24376926]
[1732987423440,0.0028639,96982.0,96981.0,9.2455171]
[1732987423933,0.0028639,96982.0,96981.0,9.24376926]
[1732987424148,0.0028639,96982.0,96981.0,9.2455171]
[1732987426410,0.0028639,96982.0,96981.0,9.24376926]
[1732987426615,0.0028639,96982.0,96981.0,9.2455171]
[1732987428563,0.0028639,96982.0,96981.0,9.25632471]
[1732987434904,0.0028639,96982.0,96981.0,9.23593071]
[1732987435590,0.0028639,96982.0,96981.0,9.23418287]
[1732987435813,0.0028639,96982.0,96981.0,9.23593071]
[1732987436014,0.0028639,96982.0,96981.0,9.22337526]
[1732987436239,0.1059749,96982.0,96981.0,8.96626326]
[1732987436704,0.20882011,96982.0,96981.0,8.96626326]
[1732987437575,0.20882011,96982.0,96981.0,8.96526326]
[1732987438245,0.20882011,96982.0,96981.0,8.98826326]
[1732987438472,0.20682011,96982.0,96981.0,8.98826326]
[1732987438928,0.21482011,96982.0,96981.0,8.98826326]
[1732987439170,0.20682011,96982.0,96981.0,8.98826326]
[1732987439413,0.21582011,96982.0,96981.0,8.98826326]
[1732987440124,0.21882011,96982.0,96981.0,8.98826326]
[1732987440335,0.20982011,96982.0,96981.0,8.98826326]
[1732987441410,0.20982011,96982.0,96981.0,8.96526326]
[1732987441820,0.21782011,96982.0,96981.0,8.96526326]
[1732987442034,0.20982011,96982.0,96981.0,8.96526326]
[1732987442872,0.21882011,96982.0,96981.0,8.96526326]
[1732987445316,0.22707227,96982.0,96981.0,8.96526326]
[1732987445566,0.35247227,96982.0,96981.0,8.96526326]
[1732987446002,0.34422011,96982.0,96981.0,8.96526326]
[1732987463769,0.34422011,96982.0,96981.0,8.98826326]
[1732987465578,0.34422011,96982.0,96981.0,8.96526326]
[1732987465803,0.35247227,96982.0,96981.0,8.96526326]
[1732987466286,0.38460868,96982.0,96981.0,8.96526326]
[1732987466530,0.38160868,96982.0,96981.0,8.96526326]
[1732987466976,0.38760868,96982.0,96981.0,8.96526326]
[1732987467208,0.37860868,96982.0,96981.0,8.96526326]
[1732987467419,1.07860868,96982.0,96981.0,8.96526326]
[1732987467844,1.04647227,96982.0,96981.0,8.96526326]
[1732987468054,1.08762052,96982.0,96981.0,8.96526326]
[1732987474033,0.96222052,96982.0,96981.0,8.96526326]
[1732987477087,0.95396836,96982.0,96981.0,8.96526326]
[1732987477290,0.96222052,96982.0,96981.0,8.96526326]
[1732987478632,0.95396836,96982.0,96981.0,8.96526326]
[1732987478851,0.96222052,96982.0,96981.0,8.96526326]
[1732987479715,0.95396836,96982.0,96981.0,8.96526326]
[1732987486436,0.95396836,96982.0,96981.0,8.96547326]
[1732987492558,0.96396836,96982.0,96981.0,8.96547326]
[1732987497036,0.97222052,96982.0,96981.0,8.96547326]
[1732987499375,1.01862052,96982.0,96981.0,8.96547326]
[1732987499796,1.24832052,96982.0,96981.0,8.96547326]
[1732987500957,1.23332052,96982.0,96981.0,8.96547326]
[1732987501170,1.24132052,96982.0,96981.0,8.96547326]
[1732987501800,1.23332052,96982.0,96981.0,8.96547326]
[1732987502004,1.24232052,96982.0,96981.0,8.96547326]
[1732987502478,1.25132052,96982.0,96981.0,8.96547326]
[1732987502697,1.23332052,96982.0,96981.0,8.96547326]
[1732987502922,1.25132052,96982.0,96981.0,8.96547326]
[1732987506261,1.11696836,96982.0,96981.0,8.96547326]
[1732987506460,1.10696836,96982.0,96981.0,8.96547326]
[1732987506667,0.95696836,96982.0,96981.0,8.96547326]
[1732987506880,0.96522052,96982.0,96981.0,8.96547326]
[1732987507058,0.95696836,96982.0,96981.0,8.96547326]
[1732987507493,0.25696836,96982.0,96981.0,8.96547326]
[1732987507708,0.24796836,96982.0,96981.0,8.96547326]
[1732987508141,0.25696836,96982.0,96981.0,8.96547326]
[1732987508587,0.23896836,96982.0,96981.0,8.96547326]
[1732987508827,0.24596836,96982.0,96981.0,8.96547326]
[1732987509048,0.95496836,96982.0,96981.0,8.96547326]
[1732987509254,0.93896836,96982.0,96981.0,8.96547326]
[1732987509475,0.94796836,96982.0,96981.0,8.96547326]
[1732987509693,0.94496836,96982.0,96981.0,8.96547326]
[1732987510118,0.25396836,96982.0,96981.0,8.96547326]
[1732987510959,0.24796836,96982.0,96981.0,8.96547326]
[1732987511168,0.25396836,96982.0,96981.0,8.96547326]
[1732987512295,0.40396836,96982.0,96981.0,8.96547326]
[1732987512506,0.42222052,96982.0,96981.0,8.96547326]
[1732987513798,0.41322052,96982.0,96981.0,8.96547326]
[1732987514008,0.40722052,96982.0,96981.0,8.96547326]
[1732987514214,0.42422052,96982.0,96981.0,8.96547326]
[1732987514679,1.12422052,96982.0,96981.0,8.96547326]
[1732987514898,1.11622052,96982.0,96981.0,8.96547326]
[1732987515093,1.12422052,96982.0,96981.0,8.96547326]
[1732987515527,1.11522052,96982.0,96981.0,8.96547326]
[1732987515740,0.42422052,96982.0,96981.0,8.96547326]
[1732987532785,1.12422052,96982.0,96981.0,8.96547326]
[1732987533707,1.11622052,96982.0,96981.0,8.96547326]
[1732987534114,1.12522052,96982.0,96981.0,8.96547326]
[1732987535491,1.10722052,96982.0,96981.0,8.96547326]
[1732987535697,1.11622052,96982.0,96981.0,8.96547326]
[1732987535909,1.12522052,96982.0,96981.0,8.96547326]
[1732987536126,1.11622052,96982.0,96981.0,8.96547326]
[1732987536350,1.12522052,96982.0,96981.0,8.96547326]
[1732987537030,1.11696836,96982.0,96981.0,8.96547326]
[1732987537264,1.12522052,96982.0,96981.0,8.96547326]
[1732987537474,1.12522052,96982.0,96981.0,9.01137326]
[1732987538205,0.41696836,96982.0,96981.0,8.96547326]
[1732987541167,1.11696836,96982.0,96981.0,8.96547326]
[1732987543460,0.41696836,96982.0,96981.0,8.96547326]
[1732987562645,0.41696836,96982.0,96981.0,9.04397326]
[1732987565233,0.41696836,96982.0,96981.0,9.01397326]
[1732987569333,0.41696836,96982.0,96981.0,8.93547326]
[1732987571471,0.40696836,96982.0,96981.0,8.93547326]
[1732987571693,0.40696836,96982.0,96981.0,9.06167326]
[1732987573062,0.25696836,96982.0,96981.0,9.06167326]
[1732987573272,0.40696836,96982.0,96981.0,9.06167326]
[1732987573531,0.25696836,96982.0,96981.0,9.06167326]
[1732987573756,0.22482011,96982.0,96981.0,9.06167326]
[1732987574182,0.20682011,96982.0,96981.0,9.06167326]
[1732987574609,0.21282011,96982.0,96981.0,9.06167326]
[1732987574828,0.22182011,96982.0,96981.0,9.06167326]
[1732987575032,0.21582011,96982.0,96981.0,9.06167326]
[1732987575460,0.21782011,96982.0,96981.0,9.06167326]
[1732987576131,0.20882011,96982.0,96981.0,9.06167326]
[1732987576986,0.21782011,96982.0,96981.0,9.06167326]
[1732987578175,0.21582011,96982.0,96981.0,9.06167326]
[1732987578871,0.21982011,96982.0,96981.0,9.06167326]
[1732987579071,0.21082011,96982.0,96981.0,9.06167326]
[1732987579503,0.21982011,96982.0,96981.0,9.06167326]
[1732987579725,0.21082011,96982.0,96981.0,9.06167326]
[1732987580102,0.21582011,96982.0,96981.0,9.06167326]
[1732987580337,0.21882011,96982.0,96981.0,9.06167326]
[1732987582770,0.20982011,96982.0,96981.0,9.06167326]
[1732987583174,0.21582011,96982.0,96981.0,9.06167326]
[1732987583383,0.24799274,96982.0,96981.0,9.06167326]
[1732987583646,0.26199274,96982.0,96981.0,8.93547326]
[1732987584076,0.22982011,96982.0,96981.0,8.93547326]
[1732987584287,0.22582011,96982.0,96981.0,8.93547326]
[1732987584503,0.22082011,96982.0,96981.0,8.93547326]
[1732987585153,0.21582011,96982.0,96981.0,8.93547326]
[1732987585359,0.21582011,96982.0,96981.0,8.93526326]
[1732987586164,0.20682011,96982.0,96981.0,8.93526326]
[1732987586615,0.22182011,96982.0,96981.0,8.93526326]
[1732987586812,0.21282011,96982.0,96981.0,8.93526326]
[1732987587160,0.22182011,96982.0,96981.0,8.93526326]
[1732987587594,0.25399826,96982.0,96981.0,8.93526326]
[1732987588587,0.24799826,96982.0,96981.0,8.93526326]
[1732987589421,0.23899826,96982.0,96981.0,8.93526326]
[1732987589600,0.24799826,96982.0,96981.0,8.93526326]
[1732987590059,0.23899826,96982.0,96981.0,8.93526326]
[1732987590283,0.25499826,96982.0,96981.0,8.93526326]
[1732987590955,0.24799826,96982.0,96981.0,8.93526326]
[1732987591220,0.25499826,96982.0,96981.0,8.93526326]
[1732987592935,0.24599826,96982.0,96981.0,8.93526326]
[1732987593348,0.24799826,96982.0,96981.0,8.93526326]
[1732987593557,0.23899826,96982.0,96981.0,8.93526326]
[1732987593796,0.40799826,96982.0,96981.0,8.93526326]
[1732987593984,0.41699826,96982.0,96981.0,8.93526326]
[1732987594188,0.40799826,96982.0,96981.0,8.93526326]
[1732987594599,0.41599826,96982.0,96981.0,8.93526326]
[1732987595015,0.40799826,96982.0,96981.0,8.93526326]
[1732987595430,0.41699826,96982.0,96981.0,8.93526326]
[1732987596705,0.39899826,96982.0,96981.0,8.93526326]
[1732987597106,0.40799826,96982.0,96981.0,8.93526326]
[1732987597522,0.39899826,96982.0,96981.0,8.93526326]
[1732987597905,0.41699826,96982.0,96981.0,8.93526326]
[1732987598317,0.40799826,96982.0,96981.0,8.93526326]
[1732987598600,0.41699826,96982.0,96981.0,8.93526326]
[1732987601181,0.40699826,96982.0,96981.0,9.06026326]
[1732987601401,0.40699583,96982.0,96981.0,9.06026326]
[1732987601813,0.37482011,96982.0,96981.0,9.06026326]
[1732987606866,0.40699835,96982.0,96981.0,9.06026326]
[1732987607263,0.40699835,96982.0,96981.0,9.01436326]
[1732987608217,0.40699835,96982.0,96981.0,8.93526326]
[1732987608881,0.37482011,96982.0,96981.0,8.93526326]
[1732987609103,0.40699993,96982.0,96981.0,9.06026326]
[1732987609308,0.37482011,96982.0,96981.0,9.06026326]
[1732987611434,0.22482011,96982.0,96981.0,9.06026326]
[1732987625218,0.21582011,96982.0,96981.0,9.06026326]
[1732987625418,0.20682011,96982.0,96981.0,9.06026326]
[1732987625683,0.21582011,96982.0,96981.0,9.06026326]
[1732987625920,0.22482011,96982.0,96981.0,9.06026326]
[1732987626138,0.21582011,96982.0,96981.0,9.06026326]
[1732987626351,0.21882011,96982.0,96981.0,9.06026326]
[1732987632128,0.2183071,96982.0,96981.0,9.06026326]
[1732987638060,0.2040396,96982.0,96981.0,9.06026326]
[1732987649197,0.2057678,96982.0,96981.0,9.06026326]
[1732987656927,0.2057678,96982.0,96981.0,9.33638443]
[1732987657282,0.2057678,96982.0,96981.0,9.06026326]
[1732987657746,0.2057678,96982.0,96981.0,9.33638443]
[1732987658557,0.2057678,96982.0,96981.0,9.33654219]
[1732987663493,0.2057678,96982.0,96981.0,9.06026326]
[1732987666501,0.2057678,96982.0,96981.0,8.93526326]
[1732987667153,0.23798985,96982.0,96981.0,8.93526326]
[1732987667522,0.22898985,96982.0,96981.0,8.93526326]
[1732987667953,0.23798985,96982.0,96981.0,8.93526326]
[1732987668354,0.22598985,96982.0,96981.0,8.93526326]
[1732987668559,0.1937678,96982.0,96981.0,8.93526326]
[1732987668771,0.35527991,96982.0,96981.0,8.93526326]
[1732987669001,0.36427991,96982.0,96981.0,8.93526326]
[1732987669205,0.36027991,96982.0,96981.0,8.93526326]
[1732987669419,0.36527991,96982.0,96981.0,8.93526326]
[1732987669955,0.36027991,96982.0,96981.0,8.93526326]
[1732987670161,0.35827991,96982.0,96981.0,8.93526326]
[1732987670375,0.36727991,96982.0,96981.0,8.93526326]
[1732987670781,0.35827991,96982.0,96981.0,8.93526326]
[1732987671002,0.36727991,96982.0,96981.0,8.93526326]
[1732987678465,0.3350678,96982.0,96981.0,8.93526326]
[1732987678675,0.2097678,96982.0,96981.0,8.93526326]
[1732987688490,0.52843516,96982.0,96981.0,8.93526326]
[1732987694050,0.54457131,96982.0,96981.0,8.93526326]
[1732987696176,0.52843516,96982.0,96981.0,8.93526326]
[1732987698956,0.39193516,96982.0,96981.0,8.93526326]
[1732987700237,0.24193516,96982.0,96981.0,8.93526326]
[1732987700462,0.2097678,96982.0,96981.0,9.0657111]
[1732987701985,0.2027678,96982.0,96981.0,9.0657111]
[1732987702249,0.2077678,96982.0,96981.0,9.0657111]
[1732987702483,0.1987678,96982.0,96981.0,9.0657111]
[1732987702897,0.2077678,96982.0,96981.0,9.0657111]
[1732987711456,0.2077678,96982.0,96981.0,9.06262832]
[1732987719044,0.2077678,96982.0,96981.0,9.01472832]
[1732987719246,0.2077678,96982.0,96981.0,8.93392832]
[1732987723560,0.2077678,96982.0,96981.0,8.97912832]
[1732987736695,0.2077678,96982.0,96981.0,9.05522832]
[1732987744272,0.2077678,96982.0,96981.0,8.93392832]
[1732987746839,0.2077678,96982.0,96981.0,9.06652832]
[1732987748888,0.2077678,96982.0,96981.0,9.01662832]
[1732987750401,0.23998093,96982.0,96981.0,8.93392832]
[1732987758304,0.2077678,96982.0,96981.0,8.93392832]
[1732987758484,0.23997647,96982.0,96981.0,8.93392832]
[1732987759196,0.2077678,96982.0,96981.0,8.93392832]
[1732987759664,0.23997647,96982.0,96981.0,8.93392832]
[1732987766478,0.15324532,96982.0,96981.0,8.93392832]
[1732987772142,0.15324532,96982.0,96981.0,8.93218048]
[1732987772403,0.15324532,96982.0,96981.0,8.93392832]
[1732987772792,0.15324532,96982.0,96981.0,8.93218048]
[1732987773037,0.36004532,96982.0,96981.0,8.93218048]
[1732987779046,0.36004532,96982.0,96981.0,8.92718048]
[1732987785806,0.35504532,96982.0,96981.0,8.92718048]
[1732987786025,0.36404532,96982.0,96981.0,8.92718048]
[1732987786225,0.35504532,96982.0,96981.0,8.92718048]
[1732987786485,0.36404532,96982.0,96981.0,8.92718048]
[1732987787704,0.36404532,96982.0,96981.0,8.86531148]
[1732987787832,0.36404532,96982.0,96981.0,8.76219648]
[1732987788031,0.44174532,96982.0,96981.0,8.76219648]
[1732987788235,0.44999748,96982.0,96981.0,8.76219648]
[1732987788499,0.64299748,96982.0,96981.0,8.76219648]
[1732987788830,0.64299748,96982.0,96981.0,8.65908148]
[1732987789851,0.64299748,96982.0,96981.0,8.57658948]
[1732987790197,0.64299748,96982.0,96981.0,8.55596648]
[1732987790385,1.34299748,96982.0,96981.0,8.55596648]
[1732987790843,1.34299748,96982.0,96981.0,8.53534348]
[1732987791047,1.34299748,96982.0,96981.0,8.47347448]
[1732987791457,1.34299748,96982.0,96981.0,8.45285148]
[1732987791644,1.34299748,96982.0,96981.0,8.43222848]
[1732987792264,1.34299748,96982.0,96981.0,8.41160548]
[1732987792482,1.34299748,96982.0,96981.0,8.34973648]
[1732987792721,1.34299748,96982.0,96981.0,8.32911348]
[1732987792947,1.34299748,96982.0,96981.0,8.30849048]